bitfinex/quotes_ETHUSD_20260102
["timestamp","ask_amount","ask_price","bid_price","bid_amount"]
[1767352792597,6.30966511,3045.4,3044.5,1.01174504]
[1767352792797,6.30966511,3045.3,3044.5,1.04457923]
[1767352794223,3.28561666,3045.5,3044.7,1.05589911]
[1767352794224,6.31166511,3045.5,3044.7,1.05589911]
[1767352795304,6.30966511,3045.8,3044.8,1.0708803]
[1767352795623,6.30966511,3045.8,3044.8,1.08760505]
[1767352795922,6.30966511,3045.8,3044.8,1.0708803]
[1767352796120,3.28512811,3045.9,3044.8,1.0708803]
[1767352796337,6.95377102,3045.8,3044.8,1.0708803]
[1767352796700,6.95377102,3045.8,3044.8,4.3551555]
[1767352797023,6.95377102,3045.8,3044.9,1.10419483]
[1767352797831,6.95377102,3045.8,3045.0,1.12057103]
[1767352798001,6.95377102,3045.8,3045.2,1.13676076]
[1767352800024,0.002,3045.9,3045.2,1.16671095]
[1767352800794,6.95577102,3045.9,3045.2,1.16671095]
[1767352801158,6.95377102,3045.8,3044.9,2.0443018]
[1767352802040,1.69424237,3049.2,3047.6,0.06906532]
[1767352802238,0.41736979,3049.7,3045.5,0.06906532]
[1767352802239,5.00059896,3048.2,3046.4,1.09578444]
[1767352802461,16.39828145,3049.1,3046.8,0.06906532]
[1767352802462,6.95377102,3047.7,3046.8,0.06906532]
[1767352802647,6.95377102,3047.5,3047.2,0.06906532]
[1767352802865,6.95377102,3047.5,3047.0,0.06906532]
[1767352802866,6.95377102,3047.3,3047.0,0.06906532]
[1767352803175,6.95377102,3047.3,3046.9,0.07548037]
[1767352803349,6.95377102,3047.3,3046.7,0.06906532]
[1767352803550,6.95377102,3047.1,3046.9,0.07548037]
[1767352803974,0.862,3047.0,3046.9,0.07548037]
[1767352804162,4.53008648,3047.1,3046.9,0.07548037]
[1767352804472,0.862,3047.0,3046.9,0.07548037]
[1767352805174,4.53008648,3047.1,3046.9,0.07548037]
[1767352805175,2.10642226,3047.1,3046.9,0.07548037]
[1767352805372,3.11809005,3047.8,3046.9,0.07548037]
[1767352805677,3.28003825,3048.8,3046.9,0.07548037]
[1767352805678,7.26474043,3047.7,3047.1,0.07548037]
[1767352805974,0.14880901,3047.7,3047.3,0.07548037]
[1767352806276,6.95377102,3048.3,3047.0,6.8641473]
[1767352807270,6.95377102,3048.0,3046.6,6.8641473]
[1767352807571,6.95377102,3047.8,3046.6,6.8641473]
[1767352807767,6.95377102,3047.6,3046.2,6.8641473]
[1767352808354,0.862,3047.5,3046.2,6.8641473]
[1767352808542,6.95377102,3047.4,3046.2,6.8641473]
[1767352808739,0.862,3047.3,3046.2,6.8641473]
[1767352808959,6.95577102,3047.0,3046.2,6.8641473]
[1767352809162,7.81777102,3047.0,3046.2,6.8641473]
[1767352809860,7.81777102,3047.0,3046.3,6.8641473]
[1767352809861,6.95577102,3047.0,3046.3,6.8641473]
[1767352810171,0.002,3047.0,3046.3,6.8641473]
[1767352810381,0.862,3047.1,3046.3,6.8641473]
[1767352810547,0.86100098,3047.1,3046.2,6.5655436]
[1767352810747,6.78677493,3047.3,3046.3,0.74681003]
[1767352810950,6.95377102,3048.2,3046.4,6.8641473]
[1767352811148,6.95177298,3047.7,3046.6,6.8641473]
[1767352811375,6.95377102,3048.2,3046.6,6.8641473]
[1767352811579,6.95377102,3048.0,3046.6,6.8641473]
[1767352811778,6.95377102,3048.0,3046.6,8.21525815]
[1767352812163,0.862,3047.9,3046.6,8.21525815]
[1767352812353,6.95377102,3047.8,3046.6,8.21525815]
[1767352812554,7.81577102,3047.8,3046.6,8.21525815]
[1767352813575,6.95377102,3047.8,3046.7,3.36429041]
[1767352813779,0.862,3047.7,3046.8,7.33568743]
[1767352814152,6.95377102,3047.8,3046.8,7.33568743]
[1767352814358,0.862,3047.7,3046.8,7.33568743]
[1767352814773,3.28022867,3048.6,3046.8,7.33568743]
[1767352814774,0.17104793,3049.1,3048.8,0.08205061]
[1767352814979,0.17104793,3049.1,3048.6,0.08205061]
[1767352814980,6.95377102,3049.0,3048.6,0.08205061]
[1767352815284,6.78393729,3049.0,3048.4,0.08205061]
[1767352815459,6.22196252,3048.8,3048.4,0.01590957]
[1767352815650,5.73176159,3048.8,3048.4,0.01590957]
[1767352815851,4.86640505,3048.8,3048.1,0.04880457]
[1767352816079,4.86640505,3048.8,3047.9,0.08205061]
[1767352816286,4.81774099,3048.6,3047.5,6.94619791]
[1767352816483,4.81774099,3048.8,3047.6,0.08205061]
[1767352816683,4.81774099,3048.4,3047.6,0.08205061]
[1767352816989,8.38264512,3048.3,3047.4,0.08205061]
[1767352817357,8.38264512,3048.3,3047.6,0.08205061]
[1767352817680,6.95377102,3048.1,3047.4,0.08205061]
[1767352817880,6.95377102,3047.9,3047.4,0.08205061]
[1767352818056,3.84843663,3048.3,3047.8,0.08205061]
[1767352818384,0.40805471,3048.2,3047.7,6.8641473]
[1767352818582,7.36182573,3048.2,3047.4,6.8641473]
[1767352818888,0.861,3048.1,3047.4,6.8641473]
[1767352820275,0.861,3048.0,3047.4,6.8641473]
[1767352820472,7.81477102,3048.0,3047.4,6.8641473]
[1767352820673,7.52164512,3047.9,3047.4,6.8641473]
[1767352821265,7.52164512,3047.9,3047.1,6.94619791]
[1767352821781,0.861,3047.8,3047.1,6.94619791]
[1767352822288,7.52164512,3047.9,3047.1,6.8641473]
[1767352822289,3.84882793,3047.9,3047.1,6.8641473]
[1767352822464,8.19965381,3047.8,3047.1,6.8641473]
[1767352823496,8.19965381,3047.8,3046.7,6.8641473]
[1767352823660,6.95377102,3047.6,3046.7,6.8641473]
[1767352824167,0.861,3047.5,3046.7,6.8641473]
[1767352824387,0.861,3047.4,3046.7,6.8641473]
[1767352824569,3.28116284,3047.7,3046.7,7.87890549]
[1767352824772,0.861,3047.6,3046.7,7.87890549]
[1767352825087,0.861,3047.6,3047.0,0.001]
[1767352825466,10.23493386,3047.7,3047.0,6.8651473]
[1767352825787,3.28137817,3047.5,3047.0,6.8651473]
[1767352826256,3.87242419,3047.5,3047.0,6.8651473]
[1767352827159,3.87242419,3047.5,3046.5,0.08305061]
[1767352827160,6.50506311,3047.4,3046.7,6.34493654]
[1767352827562,6.50506311,3047.4,3046.5,0.001]
[1767352827763,6.50506311,3047.2,3046.5,0.001]
[1767352827963,1.24588279,3047.1,3046.5,0.001]
[1767352828194,7.7509459,3047.1,3046.5,0.001]
[1767352829798,6.50506311,3047.0,3046.5,0.001]
[1767352831796,6.5640487,3046.9,3046.5,0.001]
[1767352832102,6.50506311,3046.8,3046.1,6.34493654]
[1767352833693,6.50506311,3046.8,3046.5,0.001]
[1767352833894,9.78719663,3046.8,3046.5,0.001]
[1767352834429,9.78719663,3046.8,3046.1,6.34493654]
[1767352834575,6.50506311,3046.7,3046.1,6.34493654]
[1767352834770,6.50506311,3046.5,3046.1,6.34493654]
[1767352835876,0.38488279,3046.6,3046.1,6.34493654]
[1767352836076,0.861,3046.5,3046.1,6.34493654]
[1767352836391,3.28227705,3046.7,3045.9,6.34493654]
[1767352836598,0.861,3046.6,3045.9,6.34493654]
[1767352836909,3.28227705,3046.7,3045.9,6.99101836]
[1767352837100,4.14327705,3046.7,3045.9,6.99101836]
[1767352838683,0.861,3046.7,3045.9,6.99101836]
[1767352839715,3.28117508,3046.8,3045.9,6.99101836]
[1767352839913,3.28205456,3046.9,3046.0,6.34493654]
[1767352840214,3.28205456,3046.9,3046.0,7.46271259]
[1767352841608,0.002,3046.8,3046.0,7.46271259]
[1767352843010,6.50706311,3046.8,3046.0,7.46271259]
[1767352844302,9.78730291,3046.7,3046.0,6.42698715]
[1767352844503,13.06954271,3046.7,3046.0,6.42698715]
[1767352844718,6.50506311,3046.6,3046.0,6.42698715]
[1767352845726,6.50506311,3048.2,3046.4,0.08205061]
[1767352845930,0.002,3049.4,3048.3,0.08205061]
[1767352845931,6.50506311,3048.8,3048.3,0.08205061]
[1767352846127,7.36606311,3048.7,3048.5,0.08205061]
[1767352846337,4.2382363,3048.7,3048.5,0.08205061]
[1767352846491,6.50706311,3049.0,3048.7,0.08205061]
[1767352846818,6.50506311,3048.9,3048.6,0.08205061]
[1767352846988,6.50506311,3048.7,3048.4,0.08205061]
[1767352847192,6.50506311,3048.7,3048.6,0.08856379]
[1767352848099,6.50706311,3049.0,3048.6,0.08856379]
[1767352848312,0.31718311,3048.7,3048.6,0.08856379]
[1767352848512,6.50506311,3048.9,3048.8,0.08856379]
[1767352848718,7.36606311,3048.9,3048.8,0.08856379]
[1767352849324,6.50506311,3048.8,3048.7,0.08733435]
[1767352851329,3.27955835,3049.2,3048.9,6.43350033]
[1767352851493,3.28134633,3049.4,3048.9,6.43222672]
[1767352851494,3.27948406,3049.3,3048.9,6.43222672]
[1767352851698,1.90839635,3049.2,3048.7,0.08733435]
[1767352851892,0.861,3049.1,3048.6,0.08856379]
[1767352852097,1.821062,3049.0,3048.6,0.08856379]
[1767352852506,1.821062,3049.0,3048.7,0.08856379]
[1767352852825,1.821062,3049.0,3048.4,6.43350033]
[1767352852826,3.27980418,3049.0,3048.4,6.43350033]
[1767352853016,1.91771138,3048.9,3048.6,0.08856379]
[1767352854701,0.861,3048.8,3048.6,0.08856379]
[1767352854928,0.861,3048.8,3048.4,6.43350033]
[1767352855098,0.861,3048.8,3048.6,0.09512251]
[1767352855299,5.20165261,3048.8,3048.4,0.08856379]
[1767352855500,0.5615733,3048.7,3048.4,0.08856379]
[1767352856722,0.5615733,3048.7,3048.3,0.09512251]
[1767352856959,4.70678717,3048.7,3048.3,0.09512251]
[1767352857311,0.861,3048.6,3048.3,0.09512251]
[1767352858928,4.14125568,3048.6,3048.3,0.09512251]
[1767352859124,0.41435551,3048.5,3048.2,6.34493654]
[1767352859329,0.861,3048.6,3048.3,0.09512251]
[1767352859535,0.861,3048.5,3048.3,0.09512251]
[1767352859737,0.861,3048.4,3048.3,0.09512251]
[1767352860635,4.14714421,3048.7,3048.3,0.09512251]
[1767352860636,4.14309812,3048.7,3048.5,0.09512251]
[1767352861136,4.14309812,3048.7,3048.3,6.09063085]
[1767352861535,0.8315089,3048.6,3048.1,0.09512251]
[1767352861702,0.8315089,3048.6,3047.9,0.08205061]
[1767352861908,0.54614137,3048.4,3047.9,0.08205061]
[1767352863733,0.53651213,3048.2,3047.8,5.99550834]
[1767352864906,0.53651213,3048.2,3047.6,6.09063085]
[1767352865533,3.28072877,3048.2,3047.6,6.09063085]
[1767352865734,0.002,3048.7,3047.9,0.09512251]
[1767352865933,0.002,3049.4,3048.7,5.99550834]
[1767352865934,1.96e-06,3049.4,3048.7,5.99550834]
[1767352866314,3.27895187,3049.8,3049.6,2.86246223]
[1767352866511,1.64800196,3049.7,3049.6,2.86121406]
[1767352866710,4.92701301,3049.7,3048.7,5.99550834]
[1767352867234,0.03417074,3049.6,3048.7,5.99550834]
[1767352867531,0.78700196,3049.7,3048.6,0.09512251]
[1767352867532,0.62400196,3049.7,3048.6,3.37525026]
[1767352867735,0.25353019,3049.7,3048.8,6.09063085]
[1767352867911,0.861,3049.6,3048.8,6.09063085]
[1767352868115,0.861,3049.5,3048.9,5.99550834]
[1767352869334,0.25353019,3049.7,3048.9,5.99550834]
[1767352869541,1e-08,3049.4,3048.9,5.99550834]
[1767352869926,0.25353019,3049.7,3049.0,5.99550834]
[1767352870122,0.861,3049.6,3049.0,5.99550834]
[1767352870448,0.861,3049.6,3048.8,0.09512251]
[1767352870449,1.09537085,3049.5,3048.4,3.37546665]
[1767352870750,1.09537085,3049.5,3048.5,5.99550834]
[1767352871928,1.98782215,3049.4,3048.5,5.99550834]
[1767352872127,1.67334044,3049.3,3048.5,5.99550834]
[1767352872340,2.53434044,3049.3,3048.5,5.99550834]
[1767352875121,2.53434044,3049.3,3048.5,5.99650834]
[1767352875731,1.67334044,3049.3,3048.5,5.99650834]
[1767352875938,0.861,3049.2,3048.5,5.99650834]
[1767352876154,1.3102179,3049.2,3048.5,5.99650834]
[1767352876560,1.17916574,3049.1,3048.5,5.99650834]
[1767352877072,1.17916574,3049.1,3048.5,0.001]
[1767352877231,1.18350412,3049.0,3048.5,0.001]
[1767352878366,1.18350412,3049.0,3048.6,5.99550834]
[1767352878564,1.71021503,3049.0,3048.6,5.99550834]
[1767352880863,0.00100098,3050.0,3049.9,0.09512251]
[1767352881063,0.86000294,3050.0,3049.9,0.07282706]
[1767352881262,0.85400882,3050.0,3049.9,0.07282706]
[1767352881470,0.535,3050.0,3049.9,0.07282706]
[1767352881663,4.3008807,3050.3,3050.2,0.09512251]
[1767352882166,5.1618807,3050.3,3050.2,0.09512251]
[1767352882365,4.4822327,3050.8,3050.2,0.09512251]
[1767352882566,4.4822327,3050.6,3049.9,6.0683354]
[1767352882937,4.38711019,3050.5,3049.9,0.07282706]
[1767352884039,0.861,3050.4,3050.1,6.09063085]
[1767352884240,0.861,3050.3,3050.1,0.09512251]
[1767352884465,0.002,3050.5,3050.1,6.09063085]
[1767352884675,0.002,3050.5,3050.1,5.99550834]
[1767352884877,5.31805114,3050.5,3049.8,5.99550834]
[1767352885083,5.31805114,3050.5,3049.9,0.09512251]
[1767352885254,5.31805114,3050.5,3049.9,6.09063085]
[1767352886378,6.17905114,3050.5,3049.9,6.09063085]
[1767352886547,5.31805114,3050.5,3049.9,6.09063085]
[1767352886740,6.17905114,3050.5,3049.9,6.09063085]
[1767352886940,0.863,3050.5,3049.9,6.09063085]
[1767352887266,0.863,3050.5,3050.1,6.10857627]
[1767352887467,0.002,3050.5,3050.1,6.10857627]
[1767352887676,0.863,3050.5,3050.1,6.10857627]
[1767352888592,0.002,3050.5,3050.1,6.10857627]
[1767352888747,4.14116233,3050.5,3050.1,0.09512251]
[1767352889074,5.67542184,3050.4,3050.1,0.09512251]
[1767352889283,5.73788206,3050.4,3049.8,0.09512251]
[1767352889774,5.73788206,3050.4,3049.5,0.09512251]
[1767352889977,5.73788206,3050.4,3049.5,6.10857627]
[1767352890847,0.002,3050.5,3049.5,6.10857627]
[1767352891043,5.84961267,3050.3,3049.2,0.09512251]
[1767352891347,5.84961267,3050.3,3049.2,6.10857627]
[1767352893174,5.96913909,3050.1,3049.2,6.10857627]
[1767352894773,6.0169263,3049.9,3049.2,6.10857627]
[1767352895180,6.07490078,3049.7,3049.2,6.10857627]
[1767352896151,6.07490078,3049.7,3049.2,6.01345376]
[1767352897445,0.861,3049.6,3049.2,6.01345376]
[1767352901392,0.861,3049.6,3049.1,0.001]
[1767352901393,6.10730898,3049.5,3049.1,0.001]
[1767352901752,0.861,3049.4,3049.2,6.01345376]
[1767352902002,0.861,3049.3,3049.2,6.01345376]
[1767352902750,9.83606556,3050.0,3049.1,0.001]
[1767352902954,6.96830898,3049.9,3049.1,6.01445376]
[1767352906594,0.16,3051.0,3049.1,6.01445376]
[1767352906595,6.10730898,3051.9,3050.4,6.10857627]
[1767352906889,6.10730898,3051.7,3050.6,0.09512251]
[1767352907059,6.10730898,3051.5,3050.6,0.09512251]
[1767352907454,6.10730898,3051.3,3050.6,6.10857627]
[1767352907657,6.96830898,3051.2,3050.6,6.10857627]
[1767352908458,3.27750647,3051.1,3050.6,6.10857627]
[1767352908656,0.861,3051.0,3050.6,6.10857627]
[1767352908886,6.96830898,3051.0,3050.6,6.10857627]
[1767352910190,0.861,3050.9,3050.6,6.10857627]
[1767352910396,6.10730898,3051.0,3050.6,6.10857627]
[1767352910592,0.861,3050.8,3050.6,6.10857627]
[1767352911290,0.861,3050.8,3050.4,0.09512251]
[1767352911594,0.861,3050.8,3050.0,6.11844371]
[1767352911595,6.10730898,3050.7,3050.0,6.11844371]
[1767352912256,6.10730898,3050.7,3050.0,6.0233212]
[1767352912492,6.10730898,3050.7,3050.0,0.00986744]
[1767352913376,6.10730898,3050.5,3050.0,0.00986744]
[1767352913963,3.27804366,3050.6,3050.0,0.00986744]
[1767352913964,6.96830898,3050.4,3050.0,0.00986744]
[1767352914166,6.96830898,3050.4,3049.7,0.09512251]
[1767352914361,6.96830898,3050.4,3049.5,6.10857627]
[1767352914902,6.96830898,3050.4,3049.5,0.09512251]
[1767352917052,7.1001114,3050.2,3049.5,7.03374342]
[1767352918507,7.1021114,3050.2,3049.5,7.03374342]
[1767352918794,7.1001114,3050.0,3049.5,7.03374342]
[1767352918969,7.9611114,3049.9,3049.5,7.03374342]
[1767352919390,7.9611114,3049.9,3049.5,0.09512251]
[1767352919998,11.2400135,3049.9,3049.5,0.09512251]
[1767352920907,7.1001114,3049.8,3049.2,6.93862091]
[1767352921081,7.1001114,3049.8,3049.4,7.03374342]
[1767352921496,0.861,3049.7,3049.4,7.03374342]
[1767352921699,0.861,3049.6,3049.5,6.93862091]
[1767352923012,7.1001114,3049.5,3048.7,7.03374342]
[1767352924293,7.1001114,3049.3,3048.7,7.03374342]
[1767352924704,0.861,3049.2,3048.7,7.03374342]
[1767352926213,0.861,3049.1,3048.7,7.03374342]
[1767352926583,7.1001114,3050.0,3049.0,6.93862091]
[1767352926826,7.1001114,3050.0,3049.4,6.93862091]
[1767352927120,3.27858103,3050.1,3049.4,6.93862091]
[1767352928123,6.55906331,3050.2,3049.4,6.93862091]
[1767352929419,13.65917471,3050.2,3049.4,6.93862091]
[1767352929588,0.002,3051.0,3050.1,6.93862091]
[1767352929781,10.37723192,3051.5,3050.8,7.03374342]
[1767352929986,10.37723192,3051.5,3051.0,0.09512251]
[1767352930222,7.1001114,3051.4,3050.7,6.93862091]
[1767352930518,7.1001114,3051.4,3050.6,0.09512251]
[1767352930901,7.9611114,3051.4,3050.2,6.93862091]
[1767352931215,7.9611114,3051.4,3050.0,6.93862091]
[1767352931590,7.9611114,3051.4,3050.1,7.03374342]
[1767352932289,7.1001114,3051.2,3050.1,7.03374342]
[1767352934213,10.37761787,3051.1,3050.4,6.93862091]
[1767352934723,10.37761787,3051.1,3050.6,6.93862091]
[1767352934724,7.1001114,3051.1,3050.6,6.93862091]
[1767352935017,7.1001114,3051.1,3050.2,6.93862091]
[1767352935200,7.1001114,3051.1,3050.3,7.03374342]
[1767352935403,7.1001114,3050.9,3050.3,7.03374342]
[1767352936422,10.37786176,3050.9,3050.3,7.03374342]
[1767352938824,7.1001114,3050.8,3050.3,7.03374342]
[1767352939548,7.1001114,3050.8,3050.1,0.09512251]
[1767352940494,6.55587242,3050.7,3050.1,0.09512251]
[1767352940694,7.1001114,3050.6,3050.1,0.09512251]
[1767352940894,7.9601114,3050.5,3050.1,0.09512251]
[1767352942323,7.9601114,3050.5,3050.1,7.03374342]
[1767352943725,11.23827132,3050.5,3050.1,6.93862091]
[1767352943907,11.23827132,3050.5,3050.0,0.001]
[1767352944512,11.23827132,3050.5,3050.0,6.93962091]
[1767352945608,7.1001114,3050.4,3050.0,6.93962091]
[1767352947730,10.37838553,3050.4,3050.0,6.93962091]
[1767352947909,7.1001114,3050.4,3050.0,6.93962091]
[1767352949038,10.37837307,3050.4,3050.0,6.93962091]
[1767352949833,7.1001114,3050.4,3050.0,6.93962091]
[1767352951439,10.37838965,3050.4,3050.0,6.93962091]
[1767352952050,10.37838965,3050.4,3050.0,0.001]
[1767352952051,7.75429152,3050.3,3050.0,0.001]
[1767352957341,7.75429152,3050.3,3050.0,7.6568176]
[1767352958240,11.03266343,3050.3,3050.0,7.6568176]
[1767352966860,0.86,3050.2,3050.0,7.6568176]
[1767352968866,4.13848145,3050.2,3050.0,7.6568176]
[1767352969958,11.89277297,3050.2,3049.8,7.6558176]
[1767352970347,7.75429152,3050.1,3049.8,7.6558176]
[1767352970863,3.27858103,3050.1,3049.5,7.6558176]
[1767352971164,7.75429152,3050.0,3049.5,7.6558176]
[1767352973468,3.27878175,3050.0,3049.2,0.09512251]
[1767352973645,8.92292372,3049.9,3049.0,8.67002771]
[1767352974030,8.92292372,3049.7,3049.0,8.67002771]
[1767352974229,0.86,3049.6,3049.0,8.67002771]
[1767352974453,9.78292372,3049.6,3049.0,8.67002771]
[1767352975758,3.2792261,3049.5,3049.0,8.67002771]
[1767352977565,0.861,3049.4,3049.0,8.67002771]
[1767352978366,3.27868852,3050.0,3048.9,0.09512251]
[1767352978564,3.27868852,3050.0,3049.2,8.84574028]
[1767352978565,0.861,3049.9,3049.2,8.84574028]
[1767352978733,0.861,3049.8,3049.3,8.94086279]
[1767352979062,8.29389781,3050.4,3049.4,8.84574028]
[1767352979063,0.861,3050.2,3049.4,8.84574028]
[1767352979364,0.861,3050.2,3049.8,0.02026779]
[1767352979564,9.15489781,3050.2,3049.8,8.86600807]
[1767352979867,9.15489781,3050.2,3049.4,8.84574028]
[1767352980856,8.29389781,3050.0,3049.4,8.84574028]
[1767352981369,8.29389781,3050.0,3049.1,8.84574028]
[1767352982868,8.29389781,3049.8,3049.1,8.84574028]
[1767352984778,9.15489781,3049.8,3049.1,8.84574028]
[1767352984978,11.57290886,3049.7,3049.1,8.84574028]
[1767352985865,8.29389781,3049.6,3049.1,8.84574028]
[1767352987089,3.2792261,3049.5,3049.1,8.84574028]
[1767352987882,11.57306918,3049.6,3049.1,8.84574028]
[1767352988270,3.27917137,3049.6,3049.1,8.84574028]
[1767352988482,8.29389781,3049.5,3049.1,8.84574028]
[1767352989584,11.57314426,3049.5,3049.1,8.84574028]
[1767352991400,8.29389781,3049.4,3049.1,8.84574028]
[1767352991601,11.57328159,3049.4,3049.1,8.84574028]
[1767352991797,11.57328159,3049.4,3049.0,0.001]
[1767352991990,11.57328159,3049.4,3049.0,8.84674028]
[1767352992800,8.29389781,3049.3,3049.0,0.001]
[1767352993680,8.29389781,3049.3,3049.0,8.84674028]
[1767352993899,11.57334565,3049.3,3049.0,8.84674028]
[1767352994571,8.29389781,3049.3,3049.0,8.84674028]
[1767352994798,11.57315443,3049.5,3049.0,8.84674028]
[1767352995003,6.55716206,3050.1,3049.1,8.84574028]
[1767352995176,8.29389781,3050.0,3049.1,8.94086279]
[1767352995496,9.15489781,3049.9,3049.1,8.94086279]
[1767352995697,3.27890353,3049.8,3049.1,8.94086279]
[1767352995900,14.85170487,3049.8,3049.1,10.29928466]
[1767352996600,11.57280134,3049.8,3049.1,10.29928466]
[1767352998213,11.57280134,3049.8,3049.3,8.84574028]
[1767353000703,3.27890353,3049.8,3049.3,8.84574028]
[1767353000903,11.57447383,3050.2,3049.4,8.84574028]
[1767353001085,11.57447383,3050.2,3049.6,8.84574028]
[1767353001289,3.28057602,3050.2,3049.6,8.84574028]
[1767353002286,0.002,3050.2,3049.6,8.84574028]
[1767353002486,3.2804774,3050.2,3049.6,8.84574028]
[1767353002688,0.002,3050.2,3049.6,9.26484485]
[1767353003307,1.96e-06,3049.8,3049.7,8.84574028]
[1767353003507,0.00100098,3050.2,3049.6,0.41910457]
[1767353003690,11.5722763,3050.3,3050.0,8.84574028]
[1767353004079,8.29389781,3050.3,3050.0,8.84574028]
[1767353004274,3.27831347,3050.4,3050.0,8.84574028]
[1767353004983,11.57221128,3050.4,3050.0,8.84574028]
[1767353005205,14.85057511,3050.4,3050.0,8.84574028]
[1767353005586,8.29389781,3050.3,3050.0,8.84574028]
[1767353006193,3.27847354,3050.2,3050.0,8.84574028]
[1767353006508,8.84897755,3050.1,3049.6,8.69130354]
[1767353007079,0.861,3050.7,3049.6,8.69130354]
[1767353007080,8.84811379,3051.4,3051.0,0.09512251]
[1767353007305,8.84897755,3051.2,3051.0,0.07385378]
[1767353008279,0.861,3051.1,3051.0,0.07385378]
[1767353008705,8.84897755,3051.2,3051.0,0.07385378]
[1767353008907,0.861,3051.1,3051.0,0.07385378]
[1767353010576,9.70997755,3051.1,3050.9,0.0467254]
[1767353010927,9.70997755,3051.1,3051.0,0.09512251]
[1767353011522,8.84897755,3051.1,3051.0,0.09512251]
[1767353011726,9.70997755,3051.1,3051.0,0.09512251]
[1767353013319,8.84897755,3051.1,3051.0,0.09512251]
[1767353013518,9.70897755,3051.1,3051.0,0.09512251]
[1767353015016,8.84897755,3051.1,3051.0,0.09512251]
[1767353015323,9.70897755,3051.1,3051.0,0.09512251]
[1767353015898,8.84897755,3051.0,3050.7,0.09512251]
[1767353016218,8.84897755,3051.0,3050.9,0.09512251]
[1767353016422,9.70897755,3051.0,3050.9,0.09512251]
[1767353021150,8.84897755,3051.0,3050.9,0.09512251]
[1767353021440,9.70897755,3051.0,3050.9,0.09512251]
[1767353021948,8.84897755,3050.9,3050.5,8.78642605]
[1767353022118,8.84897755,3050.9,3050.7,0.09512251]
[1767353024631,12.12669918,3050.9,3050.7,0.09512251]
[1767353025227,12.12674537,3050.9,3050.7,0.09512251]
[1767353025396,8.84897755,3050.9,3050.7,0.09512251]
[1767353026445,6.48,3053.5,3051.8,0.09512251]
[1767353026626,8.84897755,3052.1,3052.0,1e-08]
[1767353026943,0.002,3052.2,3052.0,1e-08]
[1767353027120,8.3634568,3052.3,3052.0,8.69130355]
[1767353027329,8.84897755,3052.6,3052.2,0.09512251]
[1767353027528,8.84897755,3052.6,3052.4,0.09512251]
[1767353027745,8.84897755,3052.4,3051.8,8.78642605]
[1767353027927,8.84897755,3052.4,3052.1,0.09512251]
[1767353028122,8.84897755,3052.2,3051.8,8.78642605]
[1767353028328,8.84897755,3052.2,3052.0,0.09512251]
[1767353028528,8.84897755,3052.2,3051.8,8.78642605]
[1767353028742,8.84897755,3052.2,3052.0,0.09512251]
[1767353030424,9.70897755,3052.1,3051.8,0.09512251]
[1767353030743,0.86,3052.0,3051.8,0.09512251]
[1767353032161,8.84897755,3052.1,3051.8,0.09512251]
[1767353032350,8.84897755,3052.1,3052.0,0.09512251]
[1767353032548,0.86,3052.1,3052.0,0.09512251]
[1767353033349,0.86,3052.1,3052.0,8.78642605]
[1767353033559,8.84897755,3052.3,3052.0,8.78642605]
[1767353033762,0.86,3052.2,3052.0,8.78642605]
[1767353034338,0.002,3052.2,3052.0,0.09512251]
[1767353034645,0.86,3052.1,3052.0,0.09512251]
[1767353035348,0.86,3052.1,3052.0,0.09386594]
[1767353036454,8.85097755,3052.2,3052.0,0.09386594]
[1767353036932,0.86,3052.1,3052.0,0.09386594]
[1767353037342,9.60819105,3052.0,3051.9,0.09512251]
[1767353037546,0.86,3052.1,3051.9,0.09512251]
[1767353037847,10.46819105,3052.1,3051.9,0.09512251]
[1767353039648,9.60819105,3052.1,3051.8,0.09512251]
[1767353039856,0.86,3052.0,3051.8,9.75373401]
[1767353041151,0.86,3051.9,3051.8,9.75373401]
[1767353041351,0.86,3051.9,3051.6,9.75252033]
[1767353041352,10.46819105,3051.9,3051.6,9.75252033]
[1767353041537,0.86,3051.8,3051.6,9.75252033]
[1767353042224,0.86,3051.8,3051.7,8.98885652]
[1767353042425,9.60819105,3052.1,3051.7,8.98885652]
[1767353043030,12.88463158,3052.1,3051.7,8.98885652]
[1767353043330,0.002,3052.0,3051.7,8.98885652]
[1767353046162,9.61019105,3052.0,3051.7,8.98885652]
[1767353046957,9.61019105,3052.0,3051.5,0.09512251]
[1767353047363,12.88483838,3051.9,3051.5,8.22397903]
[1767353047535,9.60819105,3051.8,3051.5,8.22397903]
[1767353048066,9.60819105,3051.9,3051.3,8.22397903]
[1767353048257,9.60819105,3051.9,3051.5,8.22397903]
[1767353048766,9.60819105,3051.9,3051.3,0.09512251]
[1767353048977,9.60819105,3051.9,3051.3,8.31910154]
[1767353049343,9.60819105,3051.7,3051.3,8.31910154]
[1767353049558,9.60819105,3051.6,3051.1,0.09512251]
[1767353050938,3.27624336,3052.3,3051.1,0.09512251]
[1767353050939,3.75293077,3054.0,3052.3,0.09512251]
[1767353051138,9.61019105,3052.7,3052.6,0.09512251]
[1767353051338,10.15251595,3052.7,3052.6,0.09512251]
[1767353051539,9.6555099,3052.7,3052.4,0.09512251]
[1767353051767,9.6555099,3052.7,3052.6,0.09512251]
[1767353052143,9.60819105,3052.6,3051.8,0.09512251]
[1767353052444,13.36112182,3051.9,3051.3,0.09512251]
[1767353052641,0.86,3051.8,3051.3,0.09512251]
[1767353052955,0.86,3051.8,3051.5,0.09512251]
[1767353053637,4.13680263,3051.8,3051.5,0.09512251]
[1767353054167,9.60819105,3051.7,3051.5,0.09512251]
[1767353055754,9.60819105,3051.6,3051.3,0.09512251]
[1767353055958,9.60819105,3051.6,3051.5,0.09512251]
[1767353056147,9.60819105,3051.6,3051.3,0.09512251]
[1767353056476,9.60819105,3051.6,3051.5,0.09512251]
[1767353057189,9.60819105,3051.6,3051.3,0.09512251]
[1767353057371,9.60819105,3051.6,3051.4,0.09512251]
[1767353057749,12.8851715,3051.6,3051.4,0.09512251]
[1767353058774,12.8851715,3051.6,3051.5,0.09512251]
[1767353059356,9.60819105,3051.5,3051.3,0.09512251]
[1767353059875,9.10819105,3051.5,3051.3,0.09512251]
[1767353060546,0.86,3051.4,3051.3,0.09512251]
[1767353064565,1.02,3051.4,3051.3,0.09512251]
[1767353066461,1.02,3051.4,3051.1,0.09512251]
[1767353066462,10.91134853,3051.4,3051.1,0.09512251]
[1767353066661,10.91134853,3051.4,3051.3,0.09512251]
[1767353067212,10.05134853,3051.4,3051.3,0.09512251]
[1767353067489,10.91134853,3051.4,3051.3,0.09512251]
[1767353070092,14.18853277,3051.4,3051.3,0.09512251]
[1767353070276,14.18853277,3051.4,3051.1,8.19429656]
[1767353070587,14.18853277,3051.4,3051.3,0.09512251]
[1767353071390,9.89134853,3051.3,3051.2,0.09512251]
[1767353071964,9.89134853,3051.3,3050.9,8.47966409]
[1767353072165,9.89134853,3051.3,3050.7,0.09512251]